bitfinex/quotes_SOLUSD_20250507
["timestamp","ask_amount","ask_price","bid_price","bid_amount"]
[1746657558077,18.02600843,147.95,147.91,11.40912979]
[1746657558483,11.26696822,147.92,147.89,1.6666]
[1746657558867,23.65664075,147.95,147.89,12.93356822]
[1746657559070,11.26696822,147.93,147.89,12.93356822]
[1746657560285,11.26696822,147.93,147.89,1.6666]
[1746657560478,18.02737925,147.92,147.89,0.14216157]
[1746657561792,6.76041103,147.92,147.89,0.14216157]
[1746657561986,18.02737925,147.92,147.89,0.14216157]
[1746657562789,18.02737925,147.92,147.88,11.26696822]
[1746657564089,6.76041103,147.92,147.88,11.26696822]
[1746657564593,18.02737925,147.92,147.88,11.26696822]
[1746657564909,6.76041103,147.92,147.88,11.26696822]
[1746657565099,6.75949709,147.94,147.9,0.14216157]
[1746657565275,6.75949709,147.94,147.9,11.40912979]
[1746657565473,6.75949709,147.94,147.91,11.26696822]
[1746657565696,6.75949709,147.94,147.9,0.14216157]
[1746657565879,18.02646531,147.94,147.9,11.40912979]
[1746657568004,6.75949709,147.94,147.91,11.26696822]
[1746657568178,6.75812664,147.97,147.92,11.26696822]
[1746657568378,11.26696822,147.96,147.92,11.26696822]
[1746657568795,6.75904021,147.95,147.92,11.26696822]
[1746657569591,6.75812664,147.97,147.93,11.40912979]
[1746657569891,11.26696822,147.95,147.93,0.14216157]
[1746657570068,11.26696822,147.95,147.91,11.26696822]
[1746657570272,23.65344325,147.97,147.92,0.14216157]
[1746657570468,11.26696822,147.95,147.92,0.14216157]
[1746657570884,11.26696822,147.93,147.87,1.5233]
[1746657571102,11.26696822,147.93,147.89,11.26696822]
[1746657571300,6.75949709,147.94,147.9,0.14216157]
[1746657571504,11.26696822,147.93,147.9,0.14216157]
[1746657571994,18.02723883,147.93,147.9,0.14216157]
[1746657572211,6.76027061,147.93,147.9,0.14216157]
[1746657572499,6.75904021,147.95,147.9,87.20912979]
[1746657572702,6.75904021,147.95,147.93,0.14216157]
[1746657572883,6.75904021,147.95,147.93,11.26696822]
[1746657573480,6.75904021,147.95,147.92,0.14216157]
[1746657573689,6.75904021,147.95,147.93,11.26696822]
[1746657573893,6.7585834,147.96,147.93,11.26696822]
[1746657576098,18.02555162,147.96,147.93,0.14216157]
[1746657576678,6.7585834,147.96,147.93,0.14216157]
[1746657576883,6.7585834,147.96,147.94,11.26696822]
[1746657577103,6.7585834,147.96,147.93,11.40912979]
[1746657578385,18.02509486,147.97,147.93,11.40912979]
[1746657578596,6.75812664,147.97,147.93,11.40912979]
[1746657579383,18.02509486,147.97,147.93,11.40912979]
[1746657581001,11.26696822,147.96,147.92,0.14216157]
[1746657581204,11.26696822,147.96,147.92,11.40912979]
[1746657581998,6.75904021,147.95,147.92,11.40912979]
[1746657582788,6.75904021,147.95,147.92,0.14216157]
[1746657583022,6.75904021,147.95,147.92,11.40912979]
[1746657583196,18.02600843,147.95,147.92,0.14216157]
[1746657584006,11.26696822,147.94,147.92,0.14216157]
[1746657584680,18.02600843,147.95,147.91,11.26696822]
[1746657584886,18.02600843,147.95,147.9,101.8]
[1746657585107,18.02600843,147.95,147.91,11.26696822]
[1746657586613,6.75904021,147.95,147.92,11.40912979]
[1746657589890,6.75904021,147.95,147.91,0.14216157]
[1746657590093,18.02600843,147.95,147.91,11.40912979]
[1746657592124,23.65454543,147.97,147.91,11.40912979]
[1746657592292,11.26696822,147.96,147.92,11.26696822]
[1746657592617,11.26696822,147.96,147.93,0.14216157]
[1746657593814,6.75904021,147.95,147.93,0.14216157]
[1746657594017,18.02600843,147.95,147.93,0.14216157]
[1746657594205,18.02600843,147.95,147.91,0.14216157]
[1746657594402,18.02600843,147.95,147.91,11.26696822]
[1746657594819,11.26696822,147.94,147.91,0.14216157]
[1746657595312,6.75904021,147.95,147.91,11.40912979]
[1746657595313,18.02600843,147.95,147.91,11.40912979]
[1746657596024,23.65454543,147.97,147.93,0.14216157]
[1746657596216,34.92151365,147.97,147.93,0.14216157]
[1746657596925,11.26696822,147.96,147.93,0.14216157]
[1746657598116,6.75904021,147.95,147.93,0.14216157]
[1746657598833,11.26696822,147.94,147.91,0.14216157]
[1746657598996,11.26696822,147.93,147.9,75.8]
[1746657599198,11.26696822,147.93,147.9,0.14216157]
[1746657599918,11.26696822,147.94,147.9,0.14216157]
[1746657600420,6.75995403,147.93,147.9,11.40912979]
[1746657600719,18.02692225,147.93,147.9,0.14216157]
[1746657600895,6.75995403,147.93,147.9,0.14216157]
[1746657601095,18.02692225,147.93,147.9,0.14216157]
[1746657605914,18.02692225,147.93,147.89,11.26696822]
[1746657606099,18.02692225,147.93,147.88,18.48]
[1746657606100,11.26696822,147.92,147.88,18.48]
[1746657606727,6.76086809,147.91,147.88,18.48]
[1746657606903,11.26696822,147.9,147.86,11.26696822]
[1746657607103,11.26696822,147.9,147.87,0.14216157]
[1746657607623,11.26696822,147.9,147.86,11.26696822]
[1746657607799,11.26696822,147.9,147.87,0.14216157]
[1746657608122,34.93000654,147.91,147.87,11.40912979]
[1746657608624,18.02783631,147.91,147.87,11.40912979]
[1746657610023,42.89779323,147.95,147.89,11.26696822]
[1746657610235,6.75949709,147.94,147.91,11.26696822]
[1746657610825,6.75919514,147.95,147.92,11.26696822]
[1746657611904,6.75919514,147.95,147.9,0.14216157]
[1746657611905,11.26696822,147.94,147.9,0.14216157]
[1746657612101,11.26696822,147.93,147.9,0.14216157]
[1746657612322,11.26696822,147.92,147.9,0.14216157]
[1746657612506,49.65679568,147.95,147.9,0.14216157]
[1746657612704,11.26696822,147.93,147.9,0.14216157]
[1746657612932,11.26696822,147.91,147.88,0.14216157]
[1746657613237,11.26696822,147.92,147.88,11.26696822]
[1746657613531,11.26696822,147.93,147.88,11.26696822]
[1746657613698,11.26696822,147.93,147.89,11.26696822]
[1746657614128,6.76041103,147.92,147.89,11.26696822]
[1746657617328,6.76041103,147.92,147.89,0.14216157]
[1746657618044,11.26696822,147.9,147.86,75.8]
[1746657618335,11.26696822,147.89,147.84,120.28]
[1746657618622,11.26696822,147.9,147.86,11.26696822]
[1746657620107,23.66623841,147.89,147.83,1.5784]
[1746657620317,11.26696822,147.87,147.83,88.64536822]
[1746657620518,11.26696822,147.87,147.84,0.14216157]
[1746657620816,6.7617824,147.89,147.84,0.14216157]
[1746657621031,6.7617824,147.89,147.84,11.40912979]
[1746657621331,11.26696822,147.88,147.84,11.40912979]
[1746657621533,11.26696822,147.88,147.84,0.14216157]
[1746657621930,18.02935866,147.88,147.84,0.14216157]
[1746657622133,18.02783631,147.91,147.87,11.40912979]
[1746657624241,6.76086809,147.91,147.89,0.14216157]
[1746657624736,18.02783631,147.91,147.88,0.14216157]
[1746657626941,18.02783631,147.91,147.86,0.14216157]
[1746657627116,18.02783631,147.91,147.88,0.14216157]
[1746657630243,11.26696822,147.9,147.86,0.14216157]
[1746657630616,34.93000654,147.91,147.86,11.40912979]
[1746657632641,34.93000654,147.91,147.86,0.14216157]
[1746657632847,34.93000654,147.91,147.87,11.26696822]
[1746657633045,11.26696822,147.9,147.86,0.14216157]
[1746657633515,11.26696822,147.9,147.86,11.40912979]
[1746657634841,6.7617824,147.89,147.86,11.40912979]
[1746657635217,6.76041103,147.92,147.88,11.40912979]
[1746657635536,18.02737925,147.92,147.88,11.40912979]
[1746657637530,34.92840683,147.92,147.88,0.14216157]
[1746657639645,34.92840683,147.92,147.88,11.26696822]
[1746657640532,23.66143861,147.92,147.89,11.26696822]
[1746657640831,23.66143861,147.92,147.87,0.14216157]
[1746657641031,23.66143861,147.92,147.89,11.26696822]
[1746657641846,23.66143861,147.92,147.88,11.26696822]
[1746657642142,11.26696822,147.92,147.88,11.26696822]
[1746657644463,6.76086809,147.91,147.88,11.26696822]
[1746657646950,6.76041103,147.92,147.88,11.26696822]
[1746657651046,6.76041103,147.92,147.89,11.26696822]
[1746657653855,6.76041103,147.92,147.86,0.14216157]
[1746657654052,6.76041103,147.92,147.88,11.26696822]
[1746657655456,18.02737925,147.92,147.88,11.26696822]
[1746657656455,16.90082356,147.93,147.88,11.26696822]
[1746657656661,28.16779178,147.93,147.89,11.26696822]
[1746657657062,28.16779178,147.93,147.88,11.26696822]
[1746657659780,30.87588975,147.93,147.88,7.21511216]
[1746657663269,7.21511216,147.92,147.88,7.21511216]
[1746657663672,7.21511216,147.92,147.86,0.14216157]
[1746657663969,7.21511216,147.92,147.88,7.21511216]
[1746657664164,6.75766995,147.98,147.91,36.0755608]
[1746657664343,6.75766995,147.98,147.96,7.21511216]
[1746657664664,6.75721332,147.99,147.95,7.21511216]
[1746657664858,13.97232548,147.99,147.94,7.21511216]
[1746657665061,7.21511216,147.96,147.9,17.84]
[1746657665266,7.21511216,147.96,147.91,0.14216157]
[1746657665457,18.64964886,147.98,147.91,7.35727373]
[1746657665764,11.26915644,147.96,147.91,11.41131801]
[1746657667868,6.75904021,147.95,147.91,11.41131801]
[1746657668063,6.75904021,147.95,147.91,0.14216157]
[1746657668269,6.75904021,147.95,147.91,11.41131801]
[1746657668465,6.75904021,147.95,147.91,0.14216157]
[1746657668651,6.75904021,147.95,147.91,11.41131801]
[1746657669671,6.75904021,147.95,147.91,0.14216157]
[1746657669871,6.75904021,147.95,147.91,11.41131801]
[1746657670079,11.26915644,147.94,147.9,17.84]
[1746657670379,11.26915644,147.91,147.87,12.84515644]
[1746657670671,18.64964886,147.94,147.88,11.26915644]
[1746657670672,11.26915644,147.92,147.88,11.26915644]
[1746657671372,6.75995403,147.93,147.88,11.26915644]
[1746657671674,11.26915644,147.92,147.88,11.26915644]
[1746657672051,23.65983911,147.93,147.89,11.26915644]
[1746657672269,34.92899555,147.93,147.89,11.26915644]
[1746657673062,34.92899555,147.93,147.87,1.576]
[1746657673063,34.92899555,147.93,147.88,11.41131801]
[1746657673570,6.76086809,147.91,147.88,11.41131801]
[1746657678301,11.26915644,147.9,147.86,11.41131801]
[1746657679209,11.26915644,147.9,147.84,32.6524]
[1746657679398,11.26915644,147.9,147.85,11.26915644]
[1746657680412,6.7617824,147.89,147.84,32.79456157]
[1746657680721,6.7617824,147.89,147.86,11.26915644]
[1746657681919,11.26915644,147.88,147.85,0.14216157]
[1746657682489,6.76269696,147.87,147.85,0.14216157]
[1746657684111,6.76232923,147.88,147.83,1.6418]
[1746657684317,6.76232923,147.88,147.85,11.26915644]
[1746657685617,6.76232923,147.88,147.86,11.26915644]
[1746657686810,6.76232923,147.88,147.84,0.14216157]
[1746657687110,6.76232923,147.88,147.86,11.26915644]
[1746657687306,6.7617824,147.89,147.86,11.26915644]
[1746657688143,18.03093884,147.89,147.84,0.14216157]
[1746657688307,18.03093884,147.89,147.85,11.26915644]
[1746657689436,34.93539485,147.89,147.85,11.26915644]
[1746657689635,11.26915644,147.86,147.82,75.8]
[1746657689933,11.26915644,147.85,147.81,11.26915644]
[1746657690314,11.26915644,147.84,147.81,0.14216157]
[1746657691430,6.76452682,147.83,147.81,0.14216157]
[1746657691602,18.03368326,147.83,147.79,11.26915644]
[1746657691802,11.26915644,147.82,147.78,11.26915644]
[1746657692029,6.76452682,147.83,147.77,21.68626595]
[1746657692030,11.26915644,147.81,147.77,21.68626595]
[1746657692230,11.26915644,147.82,147.78,11.41131801]
[1746657693633,23.67584387,147.83,147.78,11.41131801]
[1746657693634,28.18047349,147.83,147.78,11.41131801]
[1746657693937,11.26915644,147.82,147.77,11.26915644]
[1746657694636,11.26915644,147.81,147.77,11.26915644]
[1746657694823,11.26915644,147.8,147.76,12.81685644]
[1746657695708,6.76589986,147.8,147.77,11.26915644]
[1746657697634,6.76544212,147.81,147.77,11.26915644]
[1746657697847,6.76544212,147.81,147.76,1.5477]
[1746657698015,18.03459856,147.81,147.77,11.26915644]
[1746657700239,6.76544212,147.81,147.77,11.26915644]
[1746657700434,18.03459856,147.81,147.77,11.26915644]
[1746657701635,18.03459856,147.81,147.76,1.5477]
[1746657701838,18.03459856,147.81,147.77,11.26915644]
[1746657702941,6.76544212,147.81,147.78,0.14216157]
[1746657703152,6.76544212,147.81,147.78,11.26915644]
[1746657707634,23.67904742,147.81,147.78,11.26915644]
[1746657709955,57.49458874,147.84,147.78,11.26915644]
[1746657710165,11.26915644,147.82,147.78,11.26915644]
[1746657710860,76.1442376,147.84,147.78,11.26915644]
[1746657711031,11.26915644,147.82,147.78,11.26915644]
[1746657711762,11.26915644,147.82,147.76,0.14216157]
[1746657711966,11.26915644,147.82,147.78,11.26915644]
[1746657713365,11.26915644,147.81,147.78,0.14216157]
[1746657715166,6.76589986,147.8,147.78,0.14216157]
[1746657715541,6.76589986,147.8,147.78,11.26915644]
[1746657717366,23.67941151,147.81,147.78,11.26915644]
[1746657721962,23.67941151,147.81,147.79,11.26915644]
[1746657722164,16.91396939,147.81,147.79,11.26915644]
[1746657723449,16.91396939,147.81,147.78,11.26915644]
[1746657723849,23.67941151,147.81,147.78,11.26915644]
[1746657725573,23.67941151,147.81,147.79,11.26915644]
[1746657726374,16.91396939,147.81,147.79,11.26915644]
[1746657729680,6.76498444,147.82,147.8,11.26915644]
[1746657729870,6.76498444,147.82,147.81,7.22149304]
[1746657731478,23.672837,147.85,147.81,7.22149304]
[1746657731783,23.672837,147.85,147.77,119.47810255]
[1746657731784,23.672837,147.85,147.82,11.28387578]
[1746657732572,6.76361176,147.85,147.82,11.28387578]
[1746657732777,6.76361176,147.85,147.84,11.28387578]
[1746657733576,6.76269696,147.87,147.84,11.28387578]
[1746657733801,6.76269696,147.87,147.85,11.28387578]
[1746657735077,6.76269696,147.87,147.81,1.80236157]
[1746657735284,23.66943936,147.87,147.84,11.28387578]
[1746657736579,6.76269696,147.87,147.85,11.28387578]
[1746657737582,6.76269696,147.87,147.86,11.28387578]
[1746657737788,16.90448525,147.89,147.86,11.28387578]
[1746657737789,23.66626765,147.89,147.86,11.28387578]
[1746657739800,6.7617824,147.89,147.87,11.28387578]
[1746657740000,6.76132521,147.9,147.88,11.28387578]
[1746657740776,6.76132521,147.9,147.84,18.19009538]
[1746657740777,18.04520099,147.9,147.86,11.28387578]
[1746657741594,34.94851403,147.9,147.86,11.28387578]
[1746657742204,34.94851403,147.9,147.84,0.14216157]
[1746657742386,34.94851403,147.9,147.86,11.28387578]
[1746657742905,42.31108747,147.92,147.84,11.42603735]
[1746657743104,42.31108747,147.92,147.89,11.28387578]
[1746657743105,23.66143861,147.92,147.89,11.28387578]
[1746657743579,34.94531439,147.92,147.88,11.28387578]
[1746657745101,23.66143861,147.92,147.89,11.28387578]
[1746657745488,23.66143861,147.92,147.87,0.14216157]
[1746657745489,34.94531439,147.92,147.88,11.28387578]
[1746657746413,23.66143861,147.92,147.87,0.14216157]
[1746657746591,34.94531439,147.92,147.88,11.28387578]
[1746657746790,6.76041103,147.92,147.89,11.28387578]
[1746657747002,6.76041103,147.92,147.9,11.28387578]
[1746657747509,6.76041103,147.92,147.89,11.28387578]
[1746657748306,18.04428681,147.92,147.88,11.28387578]
[1746657748500,18.04428681,147.92,147.87,0.14216157]
[1746657748692,18.04428681,147.92,147.88,11.28387578]
[1746657749586,11.28387578,147.91,147.86,1.5373]
[1746657749782,11.28387578,147.89,147.86,0.14216157]
[1746657749982,11.28387578,147.89,147.85,11.28387578]
[1746657750388,11.28387578,147.9,147.86,11.42603735]
[1746657751202,6.7617824,147.89,147.86,11.42603735]
[1746657752088,6.7617824,147.89,147.87,11.28387578]
[1746657753124,16.90102758,147.92,147.87,11.28387578]
[1746657753305,18.04428681,147.92,147.86,0.14216157]
[1746657753614,18.04428681,147.92,147.88,11.28387578]
[1746657754708,6.76132521,147.9,147.87,11.28387578]
[1746657754908,18.04520099,147.9,147.86,11.42603735]
[1746657758118,6.76132521,147.9,147.87,11.28387578]
[1746657759413,23.66253372,147.92,147.87,11.28387578]
[1746657759614,11.28387578,147.91,147.87,11.28387578]
[1746657760440,23.66253372,147.92,147.87,11.28387578]
[1746657760626,6.76132521,147.9,147.87,11.28387578]
[1746657768233,6.76086809,147.91,147.87,11.28387578]
[1746657768430,6.75995403,147.93,147.88,0.14216157]
[1746657768636,18.04382981,147.93,147.89,11.28387578]
[1746657769631,11.28387578,147.93,147.88,11.42603735]
[1746657772454,11.28387578,147.92,147.88,11.42603735]
[1746657773048,11.28387578,147.92,147.86,1.5212]
[1746657773357,11.28387578,147.91,147.87,11.42603735]
[1746657773724,11.28387578,147.92,147.87,11.42603735]
[1746657774154,11.28387578,147.92,147.88,11.28387578]
[1746657774931,6.76086809,147.91,147.87,0.14216157]
[1746657775129,18.04474387,147.91,147.87,0.14216157]
[1746657775353,34.9469141,147.91,147.87,0.14216157]
[1746657775527,23.66303832,147.91,147.87,11.42603735]
[1746657775726,23.66303832,147.91,147.87,0.14216157]
[1746657775927,6.76086809,147.91,147.87,11.42603735]
[1746657776153,6.76086809,147.91,147.88,11.28387578]
[1746657776333,6.76061765,147.92,147.89,11.28387578]
[1746657779149,6.76061765,147.92,147.88,6.90436015]
[1746657779342,6.76061765,147.92,147.89,11.28387578]
[1746657780556,11.28387578,147.91,147.86,103.3212]
[1746657780854,11.28387578,147.91,147.87,0.14216157]
[1746657781641,11.28387578,147.91,147.87,11.42603735]
[1746657782152,6.76061765,147.92,147.88,11.28387578]
[1746657782354,6.76061765,147.92,147.9,11.28387578]
[1746657782536,6.76061765,147.92,147.87,6.90461196]
[1746657782742,6.76061765,147.92,147.9,11.28387578]
[1746657783441,28.18329895,147.94,147.87,6.90461196]
[1746657783442,6.75995403,147.93,147.91,11.28387578]
[1746657784555,18.04337287,147.94,147.89,0.14216157]
[1746657784859,11.28387578,147.93,147.89,11.42603735]
[1746657785162,18.04337287,147.94,147.9,11.28387578]
[1746657785541,6.75949709,147.94,147.91,11.28387578]
[1746657786380,11.28387578,147.94,147.9,11.28387578]
[1746657787564,11.28387578,147.94,147.89,11.42603735]
[1746657788442,23.65664075,147.95,147.91,11.28387578]
[1746657788648,34.94051653,147.95,147.91,11.28387578]
[1746657788863,11.28387578,147.94,147.9,11.28387578]
[1746657789566,18.04291599,147.95,147.91,11.28387578]
[1746657791350,11.28387578,147.94,147.9,11.28387578]
[1746657792282,23.65664075,147.95,147.9,11.28387578]
[1746657792580,11.28387578,147.94,147.9,11.28387578]
[1746657792882,11.28387578,147.93,147.89,11.42603735]
[1746657793077,6.76041103,147.92,147.89,11.42603735]
[1746657794687,6.76041103,147.92,147.89,0.14216157]
[1746657797486,23.66143861,147.92,147.88,11.28387578]
[1746657797704,34.94531439,147.92,147.87,87.22603735]
[1746657797906,11.28387578,147.9,147.87,75.94216157]
[1746657798108,11.28387578,147.91,147.87,75.94216157]
[1746657798904,11.28387578,147.91,147.87,87.22603735]
[1746657800404,6.76132521,147.9,147.87,87.22603735]
[1746657802313,6.76086809,147.91,147.87,87.22603735]
[1746657803392,6.76086809,147.91,147.87,11.42603735]
[1746657803915,6.76086809,147.91,147.88,11.28387578]
[1746657804410,6.76086809,147.91,147.87,11.42603735]
[1746657804618,11.28387578,147.92,147.88,11.28387578]
[1746657804916,11.28387578,147.92,147.87,0.14216157]
[1746657805096,11.28387578,147.91,147.87,0.14216157]
[1746657805295,11.28387578,147.91,147.86,27.5212]
[1746657805500,11.28387578,147.91,147.86,38.80507578]
[1746657805699,11.28387578,147.91,147.86,27.5212]
[1746657806022,11.28387578,147.91,147.86,26.0]
[1746657806213,11.28387578,147.9,147.86,37.28387578]
[1746657806525,6.76132521,147.9,147.87,11.28387578]
[1746657810123,34.9463185,147.92,147.87,11.28387578]
[1746657810914,11.28387578,147.91,147.87,11.28387578]
[1746657811519,6.76132521,147.9,147.87,26.0]
[1746657811716,6.76132521,147.9,147.87,37.28387578]
[1746657813728,6.76132521,147.9,147.87,33.21569053]
[1746657814436,13.97701574,147.9,147.87,26.0]
[1746657814731,6.76132521,147.9,147.87,26.0]
[1746657816729,6.76132521,147.9,147.87,33.21569053]
[1746657821543,13.97701574,147.9,147.87,26.0]
[1746657821838,6.76132521,147.9,147.87,26.0]
[1746657822217,13.97701574,147.9,147.87,26.0]
[1746657822408,6.76132521,147.9,147.87,26.0]
[1746657824334,6.76132521,147.9,147.83,24.21654292]
[1746657824335,7.21569053,147.89,147.83,18.8685]
[1746657824540,23.66463825,147.9,147.83,26.08419053]
[1746657824541,7.21569053,147.88,147.83,26.08419053]
[1746657824713,7.21569053,147.88,147.84,26.0]
[1746657824915,7.21569053,147.88,147.84,33.21569053]
[1746657825430,7.21569053,147.88,147.84,7.21569053]
[1746657826342,13.97826341,147.88,147.84,7.21569053]
[1746657827124,13.97826341,147.88,147.83,51.6329667]
[1746657827320,7.21569053,147.88,147.84,7.21569053]
[1746657827632,6.76199196,147.89,147.86,7.21569053]
[1746657828732,6.76086809,147.91,147.87,7.21569053]
[1746657828940,13.97655862,147.91,147.87,7.21569053]
[1746657829726,11.27469271,147.91,147.87,11.27469271]
[1746657830943,6.76132521,147.9,147.87,11.27469271]
[1746657831938,18.03601792,147.9,147.86,11.41685428]
[1746657832446,6.76132521,147.9,147.86,11.41685428]
[1746657832646,18.03601792,147.9,147.86,11.41685428]
[1746657834446,11.27469271,147.91,147.87,11.27469271]
[1746657835550,6.7617824,147.89,147.86,11.41685428]
[1746657836949,6.76132521,147.9,147.86,11.41685428]
[1746657838749,6.76132521,147.9,147.86,0.14216157]
[1746657838923,6.76132521,147.9,147.86,11.41685428]
[1746657839852,6.76132521,147.9,147.87,11.27469271]
[1746657844455,6.76132521,147.9,147.86,11.41685428]
[1746657847359,6.76132521,147.9,147.87,11.27469271]
[1746657850450,6.76086809,147.91,147.87,11.27469271]
[1746657850959,6.76086809,147.91,147.88,11.27469271]
[1746657851255,6.76086809,147.91,147.87,11.27469271]
[1746657851750,6.76086809,147.91,147.88,7.21545852]
[1746657854241,6.76061901,147.92,147.9,7.21545852]
[1746657854446,6.75949709,147.94,147.91,7.21545852]
[1746657854957,7.21545852,147.92,147.88,26.0]
[1746657855134,30.87369834,147.94,147.89,7.21545852]
[1746657855759,30.87369834,147.94,147.9,7.21545852]
[1746657858156,30.87369834,147.94,147.91,7.21545852]
[1746657858157,6.75949709,147.94,147.91,7.21545852]
[1746657858355,6.7585834,147.96,147.93,7.21545852]
[1746657858562,6.7585834,147.96,147.89,82.25416157]
[1746657858745,6.75721332,147.99,147.95,7.21545852]
[1746657858941,13.97267184,147.99,147.95,7.21545852]
[1746657861160,7.21545852,147.98,147.95,7.21545852]
[1746657861941,7.21545852,147.98,147.94,7.21545852]
[1746657862240,7.21545852,147.97,147.93,7.21545852]
[1746657862740,6.7585834,147.96,147.93,7.21545852]
[1746657865764,6.7585834,147.96,147.92,1.80756157]
[1746657866066,6.7585834,147.96,147.93,7.21545852]
[1746657866440,30.87050042,147.96,147.92,1.80756157]
[1746657866640,30.87050042,147.96,147.92,9.02302009]
[1746657867066,23.6550419,147.96,147.92,9.02302009]
[1746657867358,23.6550419,147.96,147.93,7.21545852]
[1746657873969,30.87050042,147.96,147.92,27.80756157]
[1746657874170,30.87050042,147.96,147.93,7.21545852]
[1746657875273,6.7585834,147.96,147.93,7.21545852]
[1746657875476,6.7585834,147.96,147.94,7.21545852]
[1746657875857,6.75812664,147.97,147.94,7.21545852]
[1746657877684,23.65204136,147.98,147.94,7.21545852]
[1746657879475,16.89437141,147.98,147.94,7.21545852]
[1746657879668,24.10982993,147.98,147.94,7.21545852]
[1746657880480,30.86749988,147.98,147.94,7.21545852]
[1746657884602,1.0,148.0,147.96,7.21545852]
[1746657884603,6.75721332,147.99,147.96,7.21545852]
[1746657885385,6.75721332,147.99,147.95,7.21545852]
[1746657885700,7.21545852,147.98,147.94,7.21545852]
[1746657886890,6.75812664,147.97,147.94,7.21545852]
[1746657890188,6.75812664,147.97,147.93,0.14216157]
[1746657890488,6.75812664,147.97,147.94,33.21545852]
[1746657891298,23.65024663,147.99,147.94,33.21545852]
[1746657891469,7.21545852,147.98,147.94,33.21545852]
[1746657892070,7.21545852,147.98,147.94,26.0]
[1746657892373,7.21545852,147.98,147.94,33.21545852]
[1746657892987,6.75812664,147.97,147.94,33.21545852]
[1746657896798,6.75766995,147.98,147.94,33.21545852]
[1746657900603,13.97312847,147.98,147.94,33.21545852]
[1746657902501,6.75766995,147.98,147.94,33.21545852]
[1746657903907,23.65184483,147.98,147.94,26.0]
[1746657904109,30.86730335,147.98,147.94,26.0]
[1746657904310,6.75766995,147.98,147.94,33.21545852]
[1746657905810,13.97312847,147.98,147.94,26.0]
[1746657906897,30.86730335,147.98,147.94,26.0]
[1746657908000,30.86730335,147.98,147.94,33.21545852]
[1746657908208,23.65184483,147.98,147.95,7.21545852]
[1746657909003,23.65184483,147.98,147.94,26.0]
[1746657909503,23.65184483,147.98,147.94,33.21545852]
[1746657911110,23.65184483,147.98,147.94,26.0]
[1746657911298,23.65184483,147.98,147.94,33.21545852]
[1746657911498,23.65184483,147.98,147.94,26.0]
[1746657911697,23.65184483,147.98,147.94,33.21545852]
[1746657913214,6.75766995,147.98,147.94,33.21545852]
[1746657913904,6.75766995,147.98,147.94,26.0]
[1746657914101,6.75766995,147.98,147.94,33.21545852]
[1746657915513,6.75721332,147.99,147.95,7.21545852]
[1746657915716,13.97267184,147.99,147.95,7.21545852]
[1746657916014,6.75721332,147.99,147.96,7.21545852]
[1746657917014,13.97267184,147.99,147.95,26.0]
[1746657917391,13.97267184,147.99,147.95,33.21545852]
[1746657917914,6.75721332,147.99,147.95,33.21545852]
[1746657918208,13.97267184,147.99,147.95,26.0]
[1746657918417,13.97267184,147.99,147.95,33.21545852]
[1746657919314,13.97267184,147.99,147.95,26.0]
[1746657919500,7.21545852,147.98,147.95,26.0]
[1746657921019,6.75812664,147.97,147.95,26.0]
[1746657922022,6.75812664,147.97,147.94,26.0]
[1746657923116,13.97358516,147.97,147.94,26.0]
[1746657924028,7.21545852,147.95,147.92,26.0]
[1746657924401,7.21545852,147.96,147.92,26.0]
[1746657924697,30.86890177,147.97,147.93,33.21545852]
[1746657924925,30.86890177,147.97,147.93,26.0]
[1746657926439,6.75904021,147.95,147.93,26.0]
[1746657926638,7.21545852,147.98,147.94,7.21545852]
[1746657928428,7.21545852,147.99,147.95,7.21545852]
[1746657928638,151.77240586,148.0,147.96,7.21545852]
[1746657928935,144.55694734,148.0,147.97,7.21545852]
[1746657929124,7.75694734,148.0,147.97,7.21545852]
[1746657929631,14.97240586,148.0,147.96,7.21545852]
[1746657930223,14.97240586,148.0,147.94,6.90138372]
[1746657930420,14.97240586,148.0,147.96,7.21545852]
[1746657930624,14.97240586,148.0,147.94,6.90138372]
[1746657930625,1.0,148.0,147.97,7.21545852]
[1746657931226,1.0,148.0,147.98,7.21545852]
[1746657931425,1.0,148.0,147.97,7.21545852]
[1746657932329,7.75685724,148.0,147.97,7.21545852]
[1746657933440,1.0,148.0,147.97,7.21545852]
[1746657933837,7.75680278,148.0,147.97,7.21545852]
[1746657939022,1.0,148.0,147.98,7.21545852]
[1746657940442,1.0,148.0,147.98,33.21545852]
[1746657940648,1.0,148.0,147.99,7.21545852]
[1746657943837,1.0,148.0,147.98,33.21545852]
[1746657944050,1.0,148.0,147.99,7.21545852]
[1746657944849,1.0,148.0,147.98,26.0]
[1746657945030,1.0,148.0,147.98,33.21545852]
[1746657945453,1.0,148.0,147.98,26.0]
[1746657945849,1.0,148.0,147.98,33.21545852]
[1746657946157,1.0,148.0,147.98,26.0]
[1746657946158,7.75677767,148.0,147.98,26.0]
[1746657946345,7.75677767,148.0,147.98,33.21545852]
[1746657947260,7.75677767,148.0,147.98,26.0]
[1746657949460,7.75677767,148.0,147.98,33.21545852]
[1746657949959,1.0,148.0,147.98,33.21545852]